Cogmind - Beta 13 *** ADVENTURER MODE // 2024.07.27 @ 21:05:07 Player: Jefffff Result: Destroyed by LQ-WWZ(R) with Subdweller Beam Cannon Performance ------------- Evolutions (0) 0 Regions Visited (3) 600 Robots Destroyed (36) 180 Value Destroyed (1073) 1073 Prototype IDs (10) 200 Alien Tech Used (0) 0 Bonus (0) 0 TOTAL SCORE: 2053 Bonus ------- None Cogmind --------- Core Integrity 0/250 Matter 264/300 Energy 100/100 System Corruption 0% Temperature Cool (9) Movement Treading (160) Location -10/Subcaves Parts ------- > --- POWER (1) -------- (None) > --- PROPULSION (2) --- Spiked Treads Makeshift Leg > --- UTILITY (2) ------ Small Storage Unit Propulsion Shielding > --- WEAPON (2) ------- Battle Rifle > --- INVENTORY (8) ---- Arachnoskeleton Weight Redist. System Utility Shielding High-powered Tractor Beam Power Bank Peak State ------------ > --- POWER ------------ Ion Engine > --- PROPULSION ------- Spiked Treads Makeshift Leg > --- UTILITY ---------- Small Storage Unit Weapon Shielding > --- WEAPON ----------- Battle Cannon Subdweller Shrapnel Launcher > --- INVENTORY -------- Arachnoskeleton Improved Heat Sink Weight Redist. System Propulsion Shielding Utility Shielding High-powered Tractor Beam [Rating: 16] Favorites ----------- Power Ion Engine Engine Ion Engine Power Core Light Nuclear Core Propulsion Aluminum Leg Treads Spiked Treads Leg Aluminum Leg Utility Small Storage Unit Device Improved Heat Sink Storage Small Storage Unit Processor Signal Interpreter Protection Weapon Shielding Weapon Autogun Energy Gun Medium Laser Ballistic Gun Autogun Ballistic Cannon Battle Cannon Launcher Subdweller Shrapnel Launcher Build | -11 -10 -10 -10 ------- Run | Yrd Mat Min Sub Slots Evolved . | . . . . Power . | . . . . Propulsion . | . . . . Utility . | . . . . Weapon . | . . . . Parts Attached 32 | 6 9 . 17 Power 5 | 1 1 . 3 Engine 4 | 1 . . 3 Core 1 | . 1 . . Reactor . | . . . . Propulsion 11 | 2 5 . 4 Treads 1 | . . . 1 Leg 10 | 2 5 . 3 Wheel . | . . . . Hover . | . . . . Flight . | . . . . Utility 5 | 1 1 . 3 Device 1 | . 1 . . Storage 1 | 1 . . . Processor 1 | . . . 1 Hackware . | . . . . Protection 2 | . . . 2 Artifact . | . . . . Weapon 11 | 2 2 . 7 Energy Gun 1 | 1 . . . Energy Cannon . | . . . . Ballistic Gun 7 | 1 2 . 4 Ballistic Cannon 1 | . . . 1 Launcher 2 | . . . 2 Special Weapon . | . . . . Impact Weapon . | . . . . Slashing Weapon . | . . . . Piercing Weapon . | . . . . Special Melee Weapon . | . . . . Unidentified Prototypes . | . . . . Parts Lost 9 | . . . 9 Power 2 | . . . 2 Propulsion 2 | . . . 2 Utility 1 | . . . 1 Weapon 4 | . . . 4 Highest Loss Streak 2 | . . . 2 To Critical Strikes . | . . . . Average Slot Usage (%) 95 | . 93 100 95 Engine 10 | . 5 . 12 Core 3 | . 8 14 1 Treads 3 | . . . 4 Leg 22 | . 28 28 19 Device 3 | . 8 14 1 Storage 14 | . 14 14 14 Processor 4 | . . . 6 Protection 4 | . . . 6 Ballistic Gun 18 | . 24 28 15 Ballistic Cannon 3 | . . . 4 Launcher 5 | . . . 7 Naked Turns . | . . . . Heaviest Build 26 | 13 17 17 26 Greatest Support 20 | 20 20 20 20 Greatest Overweight (x) 7 | . . . 7 Average Overweight (x) . | . . . . Largest Inventory Capacity 8 | 8 8 8 8 Average Capacity 7 | 6 8 8 8 Most Carried 8 | 4 8 8 8 Average Carried 7 | . 6 8 7 Final Capacity 8 | 8 8 8 8 Final Carried 8 | . 8 8 7 Class Distribution -------------------- 92% | Mutant 7% | Derelict-Mutant Dominant Class ---------------- Mutant | -10/Materials Mutant | -10/Mines Mutant | -10/Subcaves Resources | -11 -10 -10 -10 ----------- Run | Yrd Mat Min Sub Matter Collected 1293 | 192 373 40 688 Remotely . | . . . . Salvage Created 1079 | . 592 49 438 Parts 79 | . 37 7 35 Haulers Intercepted 2 | . 2 . . Recyclers Shooed . | . . . . Parts Field Recycled . | . . . . Retrieved Matter . | . . . . Parts Self-Destructed 17 | . . . 17 Prevented . | . . . . Kills | -11 -10 -10 -10 ------- Run | Yrd Mat Min Sub Combat Hostiles Destroyed 32 | . 12 3 17 Guns 26 | . 12 3 11 Cannons 2 | . . . 2 AOE 4 | . . . 4 Classes Destroyed 7 | . 4 1 2 Worker 1 | . 1 . . Hauler 2 | . 2 . . Watcher 1 | . 1 . . Swarmer 7 | . . 3 4 Grunt 12 | . 12 . . Sentry 1 | . . . 1 Subdweller 12 | . . . 12 Best Kill Streak 5 | . 5 3 4 Combat Bots Only 4 | . 4 3 4 Max Kills in Single Turn 2 | . 1 1 2 Gunslinging . | . . . . Exploded 2 | . . . 2 Melee . | . . . . Uniques/NPCs Destroyed . | . . . . Combat | -11 -10 -10 -10 -------- Run | Yrd Mat Min Sub Hostile Shots Fired 137 | . 49 6 82 Missed 45 | . 14 3 28 Damage Taken 1379 | . 368 16 995 Core 262 | . 82 . 180 Absorbed by Shields . | . . . . Redirected to Shielding 66 | . . . 66 Ignored by Resistances 376 | . 112 6 258 Core Remaining (%) 100 | 100 . . . Volleys Fired 119 | . 42 3 74 Largest 2 | . 2 2 2 Hottest 80 | . 70 46 80 Shots Fired 203 | . 84 6 113 Gun 176 | . 84 6 86 Cannon 18 | . . . 18 Launcher 9 | . . . 9 Special . | . . . . Kinetic 188 | . 69 6 113 Thermal 15 | . 15 . . Explosive . | . . . . Electromagnetic . | . . . . Robot Hit Streak 27 | . 18 3 27 Robot Miss Streak 4 | . 4 1 3 Penetration Max . | . . . . Secondary Targets 2 | . 1 . 1 Max Gunslinging Chain 1 | . 1 . 1 Shots Hit Robots 140 | . 61 4 75 Core Hits 62 | . 29 3 30 Critical Kills . | . . . . Critical Parts Destroyed . | . . . . Critical Strikes 4 | . 2 . 2 Burn 2 | . 2 . . Destroy 1 | . . . 1 Blast 1 | . . . 1 Melee Attacks . | . . . . Impact . | . . . . Slashing . | . . . . Piercing . | . . . . Sneak Attacks . | . . . . Combat Hostiles . | . . . . Follow-up Attacks . | . . . . Damage Inflicted 2560 | . 821 66 1673 Guns 1584 | . 821 66 697 Cannons 332 | . . . 332 Explosions 644 | . . . 644 Melee . | . . . . Ramming . | . . . . Kinetic 2425 | . 686 66 1673 Thermal 135 | . 135 . . Explosive . | . . . . Electromagnetic . | . . . . Impact . | . . . . Slashing . | . . . . Piercing . | . . . . Highest Corruption . | . . . . Average Corruption . | . . . . Corruption Purged . | . . . . Corruption Blocked . | . . . . Overload Shots . | . . . . Overflow Damage . | . . . . Projectiles . | . . . . Explosions . | . . . . Melee . | . . . . Knockbacks . | . . . . Impact . | . . . . Kinetic . | . . . . Secondary . | . . . . Self-Inflicted Damage 39 | . . . 39 Shots 2 | . . . 2 Rammed . | . . . . Targets Rammed . | . . . . Kicked . | . . . . Crushed . | . . . . Highest Temperature 155 | . 155 . . Average Temperature 40 | . 40 . . Received Heat Transfer 594 | . 288 . 306 Siege Activations . | . . . . Robots Corrupted . | . . . . Combat Hostiles . | . . . . Parts Fried . | . . . . Impact Corruptions . | . . . . Robots Melted . | . . . . Combat Hostiles . | . . . . Parts Melted 1 | . . . 1 Heat Transferred 555 | . 555 . . Parts Sabotaged . | . . . . Parts Stolen . | . . . . Parts Stripped . | . . . . Power Chain Reactions . | . . . . Alert | -11 -10 -10 -10 ------- Run | Yrd Mat Min Sub Peak Influence 289 | . 289 118 . Initial 39 | . . 39 . Average 127 | . 163 64 . Maximum Alert Level 1 | . 1 . . Low Security (%) 70 | 100 55 100 . Level 1 29 | . 44 . . Level 2 . | . . . . Level 3 . | . . . . Level 4 . | . . . . Level 5 . | . . . . High Security . | . . . . Max Security . | . . . . Squads Dispatched 3 | . 3 . . Investigation 3 | . 3 . . Extermination . | . . . . Reinforcement . | . . . . Assault . | . . . . Garrison . | . . . . Intercept . | . . . . Searches Triggered . | . . . . Construction Impeded . | . . . . Haulers Reinforced . | . . . . Active Scanning Responses . | . . . . Cargo Convoy Interrupts . | . . . . Stealth | -11 -10 -10 -10 --------- Run | Yrd Mat Min Sub Distress Signals 2 | . 2 . . Communications Jammed . | . . . . Distress Signals . | . . . . Times Spotted 50 | . 22 3 25 Peak Tracking Total 6 | . 5 3 6 Tactical Retreats 4 | . 2 . 2 Traps | -11 -10 -10 -10 ------- Run | Yrd Mat Min Sub Traps Triggered 3 | . 1 . 2 Indirectly . | . . . . Trap Hack Attempts . | . . . . Triggered . | . . . . Disarmed . | . . . . Reprogrammed . | . . . . Reused . | . . . . Traps Extracted . | . . . . Installed . | . . . . Triggered . | . . . . Machines | -11 -10 -10 -10 ---------- Run | Yrd Mat Min Sub Machines Disabled 2 | . . 1 1 Max in Single Turn 1 | . . 1 1 Machines Repaired . | . . . . Machines Dismantled . | . . . . Machines Sabotaged . | . . . . Overloaded Fab Kills . | . . . . Hacking | -11 -10 -10 -10 --------- Run | Yrd Mat Min Sub Machines Accessed 10 | . 8 . 2 Terminals 6 | . 6 . . Fabricators . | . . . . Repair Stations . | . . . . Recycling Units 2 | . 2 . . Scanalyzers . | . . . . Garrison Access . | . . . . Total Hacks 29 | . 25 . 4 Successful 19 | . 15 . 4 Failed 10 | . 10 . . Catastrophic 1 | . 1 . . Database Lockouts . | . . . . Manual 25 | . 23 . 2 Terminals 19 | . 19 . . Fabricators . | . . . . Repair Stations . | . . . . Recycling Units 6 | . 6 . . Scanalyzers . | . . . . Garrison Access . | . . . . Terminal Hacks 8 | . 4 . 4 Record 4 | . 1 . 3 Part Schematic 2 | . 2 . . Terminal Index 1 | . 1 . . Derelict Proto ID Bank 1 | . . . 1 Fabricator Hacks . | . . . . Repair Station Hacks . | . . . . Recycling Unit Hacks . | . . . . Scanalyzer . | . . . . Garrison Access Hacks . | . . . . Unauthorized Hacks 11 | . 11 . . Terminals 7 | . 7 . . Track 1 | . 1 . . Botnet 6 | . 6 . . Fabricators . | . . . . Repair Stations . | . . . . Recycling Units 4 | . 4 . . Reject 1 | . 1 . . Mask 2 | . 2 . . Tunnel 1 | . 1 . . Scanalyzers . | . . . . Garrison Access . | . . . . Data Cores Recovered . | . . . . Used . | . . . . Hacking Detections 7 | . 7 . . Full Trace Events 1 | . 1 . . Feedback Events . | . . . . Feedback Blocked . | . . . . Robot Schematics Acquired . | . . . . Robots Built . | . . . . Authchips . | . . . . Time . | . . . . Total Robot Build Rating . | . . . . Part Schematics Acquired 2 | . 2 . . Parts Built . | . . . . Authchips . | . . . . Time . | . . . . Total Part Build Rating . | . . . . Parts Repaired . | . . . . Time . | . . . . Parts Recycled . | . . . . Recycled Matter . | . . . . Retrieved Matter . | . . . . Retrieved Components . | . . . . Parts Scanalyzed . | . . . . Part Schematics Acquired . | . . . . Parts Damaged . | . . . . Bothacking | -11 -10 -10 -10 ------------ Run | Yrd Mat Min Sub Used RIF Installer . | . . . . Robots Hacked . | . . . . Non-combat . | . . . . Combat . | . . . . Robot Hacks Applied . | . . . . Relay Couplers Released . | . . . . Fabnet Peak Effective % . | . . . . Robots Rewired . | . . . . Allies Hacked . | . . . . Hacks Repelled . | . . . . Allies | -11 -10 -10 -10 -------- Run | Yrd Mat Min Sub Total Allies . | . . . . Largest Group . | . . . . Highest-Rated Group . | . . . . Highest-Rated Ally . | . . . . Total Orders . | . . . . Ally Attacks . | . . . . Total Damage . | . . . . Kills . | . . . . Allies Corrupted . | . . . . Allies Melted . | . . . . Intel | -11 -10 -10 -10 ------- Run | Yrd Mat Min Sub Robot Analysis Total . | . . . . Derelict Logs Recovered 2 | . . . 2 Drone Launches . | . . . . Drone Recoveries . | . . . . Exploration | -11 -10 -10 -10 ------------- Run | Yrd Mat Min Sub Turns Passed 4012 | 60 821 346 2785 Spaces Moved 2212 | 44 543 28 1597 Core 28 | 10 . . 18 Treads 367 | . . . 367 Legs 1817 | 34 543 28 1212 Wheels . | . . . . Hover . | . . . . Flight . | . . . . Fastest Speed 50 | 50 120 120 120 Average Speed 148 | 104 120 120 160 Slowest Speed 400 | 120 120 120 400 Overloaded Moves . | . . . . Propulsion Burnouts . | . . . . Robots Hopped . | . . . . Cave-ins Triggered . | . . . . Exploration Rate (%) 39 | 3 70 7 78 Regions Visited 3 Branch Regions 2 Pre-discovered Areas 3 | . 1 . 2 Known Exits Taken . | . . . . Unknown Exits Taken 3 | 1 1 1 . Scrap Searched 13 | . . . 13 Spaces Dug 18 | . . . 18 Terrain Destroyed 93 | . . . 93 Melee . | . . . . Projectile . | . . . . AOE 93 | . . . 93 Terrain Rammed . | . . . . Walls Destroyed . | . . . . Machines Disabled . | . . . . Actions | -11 -10 -10 -10 --------- Run | Yrd Mat Min Sub Total 2760 | 58 648 335 1719 Wait 351 | 3 27 305 16 Move 2209 | 43 542 27 1597 Hop . | . . . . Pick Up 26 | 6 14 . 6 Fast Attach 10 | . 3 . 7 Attach 11 | 6 . . 5 Detach . | . . . . Swap 11 | . 6 . 5 Drop 23 | . 14 . 9 Fire 119 | . 42 3 74 Melee . | . . . . Ram . | . . . . Kick . | . . . . Crush . | . . . . Escape Stasis . | . . . . Rewire . | . . . . Trap . | . . . . Miscellaneous . | . . . . Route ------- -11/Scrapyard -10/Materials (discovered 3 exits: [*Mat x2] / [*Min]) -10/Mines -10/Subcaves (discovered 3 exits: *Mat x2 / [*Rec]) History --------- Turn | Location | Event 6 | -11/Scrapyard | Discovered new exit (range 15) 61 | -11/Scrapyard | Entered Materials 252 | -10/Materials | Discovered new exit (range 16) 312 | -10/Materials | Build established: Mutant 479 | -10/Materials | Discovered new exit (range 16) 578 | -10/Materials | Discovered new exit (range 15) 882 | -10/Materials | Entered Mines 1192 | -10/Mines | Discovered new exit (range 4) 1228 | -10/Mines | Entered Subcaves 1238 | -10/Subcaves | Learned location of Zion (-6) 1251 | -10/Subcaves | Learned Materials stockpile data 1267 | -10/Subcaves | Discovered new exit (range 14) 1361 | -10/Subcaves | Shifting Twisted Machinery released Mak. Light Armor Plating 1461 | -10/Subcaves | Discovered new exit (range 14) 1477 | -10/Subcaves | Identified exit to Materials 1840 | -10/Subcaves | Visited Clippyterm 1844 | -10/Subcaves | Learned Research security intel 1961 | -10/Subcaves | Core integrity fell below 50% 2073 | -10/Subcaves | A swath of the cavern ceiling suddenly collapsed 2172 | -10/Subcaves | A swath of the cavern ceiling suddenly collapsed 2190 | -10/Subcaves | Shifting Twisted Machinery released Battle Rifle 2258 | -10/Subcaves | Shifting Twisted Machinery released Shrapnel Trap 2518 | -10/Subcaves | Met a Zionite searching for "candidates" 2658 | -10/Subcaves | A Subdweller sparked back to life 2658 | -10/Subcaves | A Subdweller sparked back to life 2658 | -10/Subcaves | A Subdweller sparked back to life 2697 | -10/Subcaves | Found Prototype Leg 2889 | -10/Subcaves | Shifting Twisted Machinery released Sub. Beam Cannon 3376 | -10/Subcaves | Discovered exit to Materials (range 11) 3716 | -10/Subcaves | Visited 4L-MR0's lab 3731 | -10/Subcaves | Identified Arachnoskeleton 3746 | -10/Subcaves | Found Power Bank 3879 | -10/Subcaves | Core integrity fell below 20% 4013 | -10/Subcaves | Destroyed by LQ-WWZ(R) with Subdweller Beam Cannon Last Messages --------------- 03887_ E8-Y71(R) Disposable Heat Sink blasted off. 03890_ Weapon Shielding destroyed. 03890_ Sub. Shrapnel Launcher destroyed. 03891_ Sub. Optics melted. 03891_ E8-Y71(R) destroyed. 03894_ Acquired 15 matter. 03915_ Acquired 9 matter. 03917_ Acquired 7 matter. 03918_ Acquired 3 matter. 03920_ Acquired 2 matter. 03933_ Searching scrap... 03933_ Found Battle Rifle. 03933_ Found 43 Matter. 03934_ Acquired 24 matter. 03936_ Acquired Battle Rifle. 9T-WNQ(R) emerges from concealment. 04005_ Battle Cannon destroyed. 04011_ Ion Engine destroyed. 04012_ LQ-WWZ(R) suffers critical hit (Destroy). Map ----- +----------------------------------------------------+ | ?????????????????????????????????????????????????? | | ?????????????????????????????????????????????????? | | ?????????????????????????????????????????????????? | | ?????????????????????????????????????????????????? | | ?????????????????????????????????????????????????? | | ?????????????????????????????????????????????????? | | ??????????????????????#############??????????????? | | ??????????????????????# "#"""""" "#??????????????? | | ??????????????????????# ! "X" "#??????????????? | | ????????####??????????### #####????????????? | | ????????# #?????????#### + #????????????? | | ????????# #?????????#"###########" #????????????? | | ????????# #?????????#%####???####" #????????????? | | ????????# ##????????#"!""#####=%% #????????????? | | ????##### #????????## # | "#????????????? | | ????#%# ##?????????# "## ##????????????? | | ????## #??????????#### ## ##?????????????? | | ???## #???????????###" "#######????????????? | | ???# #?????????### " ### ####???###???? | | ???### #?????????# % % % %##### #???? | | ????# #?###????## ############ ## ##??? | | ????## ### ##???# #????## ### % ## ##?? | | ?????# ##### ###### #?# ###%% ##? | | ?????##### ## ## #; ### #### #? | | ?????????# %& %R % #?## #? | | ?????????### %&! @ R ## #### #? | | ???????????## #%### ## ## ### ## %##? | | ????????????#####?### ######## ### #?? | | ????????????????????######??????##### ##?? | | ????????????????????????????????????## ##??? | | ?????????????????????????????????????# ##???? | | ?????????????????????????????????????# ##????? | | ????????????????????????????????????## ####???? | | ?????????????????????????????????#### # ## # | | ????????????????????????????????## #? | | ????????????????????????????????# ##? | | ????????????????????????????????# # # #?? | | ????????????????????????????????## #?? | | ?????????????????????????????????## #?? | | ??????????????????????????????????## # ## # ##? | | ???????????????????????????????????## ###?### ## | | ????????????????????????????????????### ##### # | | ??????????????????????????????????##### # | | ?????????????????????????????###### ## # | | ##???????????????????????##### ## # | | # ####???????????????????# % ### # | | # ##???????????????????# ## # | | # #???????????????????# < # | | ?# #???????????????????##### % ## # | | ?## ##????????????????????#?## ##??# | +----------------------------------------------------+ Best States ------------- Heat Dissipation 39 Energy Generation 14 Energy Capacity 250 Matter Stores 300 Matter Capacity 300 Sight Range 16 Terrain Scan Density 10 Resistance: KI 20 Resistance: TH 20 Resistance: EX 20 Resistance: EM 20 Resistance: I 20 Resistance: S 20 Resistance: P 20 Propulsion Shielding 33 Weapon Shielding 33 Evasion (%) 55 Recoil Reduction 1 Offensive Hacking 10 Item Schematics ----------------- Weapon Shielding | -10/Materials | Hacked Power Shielding | -10/Materials | Hacked Robot Schematics ------------------ None Fabricated ------------ Nothing Alien Tech Used ----------------- None Achievements -------------- None Challenges ------------ None Game ------ Seed SensorHardenedTrap Manual? 0 Play Time 00:25:21 Cumulative 97.2 hours Start 2024.07.27 @ 20:33:12 End 2024.07.27 @ 21:05:07 Sessions 1 Manual Loads 0 Difficulty Adventurer Special Mode None Game No. 131 Rogue 0 Adventurer 131 Explorer 0 Win Type - Total 0 Types 0/0/0/0/0/0/0/0/0 Lore% 46 Gallery% 47 Achievement% 34 Wizard Run 0 Options --------- Layout 2 ASCII 0 Keyboard 0 Movement Mouse Keybinds 0 Fullscreen 2 Font 48/Smallcaps Map View 50x44 Zoom Use 0% Tactical HUD 1 Map Filters NONE Filters NONE Steam 1 RUN: 482aae85-1f9d-4692-8430-fe3b2b94063b